fUST/lending_fUST_20250925
["ID","MTS","AMOUNT","RATE_DAILY","PERIOD"]
[387637119,1758793834110,-480.0,0.00020994,2]
[387637121,1758793834120,-480.0,0.00020994,2]
[387637123,1758793834129,-480.0,0.00020995,2]
[387637125,1758793834140,-515.4,0.00020995,2]
[387637127,1758793834149,-480.0,0.00020995,2]
[387637129,1758793834160,-480.0,0.00020995,2]
[387637131,1758793834170,-455.85,0.00021169,2]
[387637132,1758793834180,-480.0,0.00021268,2]
[387637133,1758793834190,-934.7,0.00021268,2]
[387637134,1758793834200,-480.0,0.00021268,2]
[387637136,1758793834209,-480.0,0.00021268,2]
[387637138,1758793834219,-480.0,0.00021268,2]
[387637140,1758793834229,-480.0,0.00021268,2]
[387637142,1758793834238,-480.0,0.00021269,2]
[387637144,1758793834247,-515.4,0.00021269,2]
[387637146,1758793834257,-480.0,0.00021269,2]
[387637148,1758793834267,-480.0,0.00021269,2]
[387637150,1758793834276,-784.80352331,0.00021277,2]
[387637152,1758793834291,-480.0,0.00021542,2]
[387637154,1758793834300,-934.7,0.00021542,2]
[387637156,1758793834310,-480.0,0.00021542,2]
[387637158,1758793834319,-480.0,0.00021542,2]
[387637160,1758793834330,-480.0,0.00021542,2]
[387637163,1758793834340,-480.0,0.00021542,2]
[387637165,1758793834349,-480.0,0.00021543,2]
[387637167,1758793834359,-515.4,0.00021543,2]
[387637168,1758793834368,-480.0,0.00021543,2]
[387637171,1758793834379,-480.0,0.00021543,2]
[387637173,1758793834388,-173.7,0.00021673,2]
[387637175,1758793834397,-160.0,0.00021729,2]
[387637176,1758793834407,-509.482403,0.0002175,2]
[387637178,1758793834415,-1000.0,0.0002179,2]
[387637180,1758793834425,-1000.0,0.0002179,2]
[387637182,1758793834434,-1000.0,0.0002179,2]
[387637184,1758793834443,-1000.0,0.0002179,2]
[387637186,1758793834453,-1000.0,0.0002179,2]
[387637188,1758793834462,-788.45181069,0.0002179,2]
[387637190,1758793834472,-500.0,0.0002179,2]
[387637192,1758793834481,-375.80353911,0.0002179,2]
[387637194,1758793834490,-500.0,0.0002179,2]
[387637196,1758793834500,-500.0,0.0002179,2]
[387637198,1758793834510,-500.0,0.0002179,2]
[387637200,1758793834519,-500.0,0.0002179,2]
[387637202,1758793834528,-500.0,0.0002179,2]
[387637204,1758793834538,-151.0,0.0002179,2]
[387637206,1758793834547,-500.0,0.0002179,2]
[387637207,1758793834556,-151.0,0.0002179,2]
[387637208,1758793834566,-151.0,0.0002179,2]
[387637209,1758793834576,-500.0,0.0002179,2]
[387637210,1758793834586,-151.0,0.0002179,2]
[387637211,1758793834595,-500.0,0.0002179,2]
[387637212,1758793834605,-151.0,0.0002179,2]
[387637213,1758793834614,-500.0,0.0002179,2]
[387637214,1758793834624,-151.0,0.0002179,2]
[387637215,1758793834633,-500.0,0.0002179,2]
[387637216,1758793834644,-151.0,0.0002179,2]
[387637217,1758793834653,-500.0,0.0002179,2]
[387637218,1758793834663,-350.0,0.0002179,2]
[387637220,1758793834673,-298.26373367,0.0002179,2]
[387637222,1758793834682,-350.0,0.0002179,2]
[387637224,1758793834692,-500.0,0.0002179,2]
[387637226,1758793834701,-350.0,0.0002179,2]
[387637228,1758793834711,-350.0,0.0002179,2]
[387637230,1758793834720,-350.0,0.0002179,2]
[387637231,1758793834729,-350.0,0.0002179,2]
[387637233,1758793834738,-500.0,0.0002179,2]
[387637235,1758793834747,-525.07877521,0.00021816,2]
[387637237,1758793834756,-480.0,0.00021816,2]
[387637239,1758793834766,-934.7,0.00021816,2]
[387637241,1758793834775,-480.0,0.00021816,2]
[387637243,1758793834784,-480.0,0.00021816,2]
[387637246,1758793834796,-480.0,0.00021816,2]
[387637248,1758793834806,-480.0,0.00021816,2]
[387637250,1758793834815,-480.0,0.00021817,2]
[387637252,1758793834825,-515.4,0.00021817,2]
[387637254,1758793834835,-480.0,0.00021817,2]
[387637256,1758793834845,-480.0,0.00021817,2]
[387637258,1758793834854,-152.58499236,0.00021918,2]
[387637260,1758793834863,-160.0,0.00021986,2]
[387637262,1758793834872,-160.0,0.00021986,2]
[387637264,1758793834882,-160.0,0.00021986,2]
[387637266,1758793834891,-944.2,0.00022,2]
[387637268,1758793834901,-984.60573932,0.00022044,2]
[387637270,1758793834910,-748.96515036,0.00022065,2]
[387637272,1758793834919,-542.67208134,0.00022065,2]
[387637274,1758793834929,-934.7,0.0002209,2]
[387637276,1758793834939,-480.0,0.0002209,2]
[387637278,1758793834948,-187.96237442,0.0002209,2]
[387637280,1758793834958,-480.0,0.0002209,2]
[387637282,1758793834967,-480.0,0.0002209,2]
[387637284,1758793834977,-480.0,0.00022091,2]
[387637286,1758793834986,-515.4,0.00022091,2]
[387637288,1758793834996,-480.0,0.00022091,2]
[387637290,1758793835005,-379.4878324,0.00022091,2]
[387637292,1758793835014,-2992.86474083,0.00022095,2]
[387637294,1758793835023,-500.0,0.00022144,2]
[387637296,1758793835033,-414.03812162,0.00022277,2]
[387637298,1758793835042,-401.4587045,0.00022296,2]
[387637300,1758793835051,-934.7,0.00022364,2]
[387637302,1758793835061,-480.0,0.00022364,2]
[387637304,1758793835070,-480.0,0.00022364,2]
[387637306,1758793835079,-480.0,0.00022364,2]
[387637308,1758793835089,-480.0,0.00022365,2]
[387637310,1758793835099,-515.4,0.00022365,2]
[387637312,1758793835108,-480.0,0.00022365,2]
[387637314,1758793835117,-500.0,0.00022545,2]
[387637316,1758793835126,-934.7,0.00022638,2]
[387637318,1758793835135,-480.0,0.00022638,2]
[387637320,1758793835145,-506.87664463,0.00022638,2]
[387637322,1758793835154,-480.0,0.00022638,2]
[387637324,1758793835163,-480.0,0.00022639,2]
[387637326,1758793835173,-515.4,0.00022639,2]
[387637328,1758793835182,-480.0,0.00022639,2]
[387637330,1758793835191,-150.0,0.00022662,2]
[387637332,1758793835200,-500.0,0.00022687,2]
[387637334,1758793835210,-601.7140521,0.00022692,2]
[387637336,1758793835219,-151.0,0.000227,5]
[387637338,1758793835228,-2168.51763703,0.00022784,2]
[387637340,1758793835237,-934.7,0.00022912,2]
[387637342,1758793835246,-488.86,0.00022912,2]
[387637344,1758793835256,-480.0,0.00022912,2]
[387637346,1758793835265,-480.0,0.00022913,2]
[387637348,1758793835275,-515.4,0.00022913,2]
[387637350,1758793835287,-480.0,0.00022913,2]
[387637352,1758793835298,-500.0,0.00023014,2]
[387637354,1758793835307,-984.60573932,0.00023116,2]
[387637356,1758793835316,-500.0,0.00023185,2]
[387637358,1758793835326,-934.7,0.00023186,2]
[387637360,1758793835335,-480.0,0.00023186,2]
[387637362,1758793835344,-480.0,0.00023187,2]
[387637364,1758793835355,-515.4,0.00023187,2]
[387637366,1758793835364,-500.0,0.00023207,2]
[387637368,1758793835373,-215.87999059,0.0002326,9]
[387637370,1758793835383,-482.11086438,0.00023287,2]
[387637372,1758793835393,-767.44,0.00023287,2]
[387637374,1758793835402,-4316.38642647,0.00023296,2]
[387637376,1758793835411,-151.0,0.000233,6]
[387637378,1758793835420,-173.7,0.0002333,3]
[387637380,1758793835429,-318.9803333,0.0002334,2]
[387637382,1758793835439,-318.9803333,0.0002334,2]
[387637384,1758793835448,-934.7,0.0002346,2]
[387637386,1758793835457,-158.89094861,0.0002346,2]
[387637388,1758793835466,-480.0,0.00023461,2]
[387637390,1758793835475,-515.4,0.00023461,2]
[387637392,1758793835484,-500.0,0.00023609,2]
[387637394,1758793835493,-1013.166,0.0002361,4]
[387637396,1758793835503,-173.51998777,0.0002361,4]
[387637398,1758793835512,-318.9803333,0.00023617,7]
[387637400,1758793835522,-318.9803333,0.00023617,7]
[387637402,1758793835531,-500.0,0.00023627,2]
[387637404,1758793835540,-500.0,0.00023707,2]
[387637406,1758793835550,-934.7,0.00023734,2]
[387637408,1758793835559,-500.0,0.00023734,2]
[387637410,1758793835569,-168.08282021,0.00023735,2]
[387637412,1758793835578,-515.4,0.00023735,2]
[387637414,1758793835587,-401.4587045,0.00023818,2]
[387637416,1758793835596,-318.9803333,0.00023895,7]
[387637418,1758793835607,-318.9803333,0.00023895,7]
[387637420,1758793835616,-151.0,0.00024,8]
[387637422,1758793835627,-934.7,0.00024008,2]
[387637424,1758793835636,-515.4,0.00024009,2]
[387637426,1758793835645,-418.60072527,0.00024021,2]
[387637427,1758793835654,-500.98143617,0.00024021,2]
[387637428,1758793835663,-505.61204843,0.00024029,2]
[387637429,1758793835671,-944.2,0.000241,2]
[387637430,1758793835680,-318.9803333,0.00024172,14]
[387637431,1758793835689,-984.60573932,0.00024187,2]
[387637432,1758793835698,-574.36899308,0.00024268,2]
[387637433,1758793835707,-934.7,0.00024282,2]
[387637434,1758793835715,-515.4,0.00024283,2]
[387637435,1758793835724,-185.229449,0.00024417,2]
[387637436,1758793835733,-150.0,0.0002455,2]
[387637437,1758793835742,-934.7,0.00024556,2]
[387637438,1758793835750,-515.4,0.00024557,2]
[387637439,1758793835837,-151.0,0.00024658,2]
[387637440,1758793835847,-151.0,0.000247,10]
[387637442,1758793835857,-11324.6195183,0.00024724,2]
[387637444,1758793835866,-1730.11781,0.00024724,2]
[387637446,1758793835875,-2497.92178993,0.00024726,2]
[387637448,1758793835886,-4095.9331445,0.00024726,2]
[387637450,1758793835896,-934.7,0.0002483,2]
[387637452,1758793835905,-515.4,0.00024831,2]
[387637454,1758793835914,-501.2977237,0.00024873,2]
[387637456,1758793835924,-500.93720808,0.00024873,2]
[387637458,1758793835933,-500.0,0.00024873,2]
[387637460,1758793835942,-150.0,0.00024873,2]
[387637462,1758793835952,-489.84047527,0.00024873,2]
[387637464,1758793835961,-504.46953015,0.00024873,2]
[387637466,1758793835971,-500.0,0.00024873,2]
[387637468,1758793835980,-501.7698393,0.00024873,2]
[387637470,1758793835989,-500.0,0.00024873,2]
[387637472,1758793835999,-500.0,0.00024873,2]
[387637474,1758793836009,-500.0,0.00024873,2]
[387637476,1758793836018,-406.79269329,0.00024873,2]
[387637478,1758793836028,-500.0,0.00024873,2]
[387637480,1758793836037,-15597.3196222,0.000249,2]
[387637486,1758793836103,-47393.67612749,0.000249,2]
[387637487,1758793836124,-1531.44999057,0.000249,2]
[387637489,1758793836135,-24994.32431711,0.000249,2]
[387637570,1758793838491,-488.6797101,0.00019351,2]
[387637571,1758793838502,-326142.29967663,0.000249,2]
[387637572,1758793838512,-198.0,0.00024932,2]
[387637573,1758793838521,-173.7,0.00024987,5]
[387637574,1758793838530,-11406.02960513,0.00025,3]
[387637575,1758793838540,-515.4,0.00025105,2]
[387637576,1758793838549,-800.0,0.00025196,2]
[387637578,1758793838559,-767.44,0.00025205,4]
[387637579,1758793838569,-836.49770281,0.00025208,2]
[387637580,1758793838579,-417.15472785,0.00025215,2]
[387637581,1758793838588,-160.0,0.0002523,2]
[387637583,1758793838598,-984.60573932,0.00025259,3]
[387637585,1758793838607,-151.0,0.000253,12]
[387637587,1758793838617,-401.4587045,0.0002534,2]
[387637590,1758793838626,-600.0,0.00025376,2]
[387637593,1758793838636,-515.4,0.00025379,2]
[387637595,1758793838645,-300.0,0.00025421,2]
[387637597,1758793838655,-1000.0,0.00025421,2]
[387637599,1758793838664,-1000.0,0.00025421,2]
[387637601,1758793838673,-504.83976007,0.00025421,2]
[387637603,1758793838682,-262.18,0.00025439,2]
[387637605,1758793838692,-486.59,0.00025439,2]
[387637607,1758793838702,-98383.84776256,0.0002544,2]
[387637609,1758793838712,-160.0,0.0002544,7]
[387637611,1758793838721,-151.0,0.0002544,2]
[387637613,1758793838731,-168.0,0.00025451,2]
[387637615,1758793838740,-515.42503806,0.00025653,2]
[387637617,1758793838749,-198.87602421,0.00025714,2]
[387637619,1758793838758,-179.64071856,0.00025885,2]
[387637621,1758793838767,-167.0,0.00025927,3]
[387637623,1758793838777,-167.0,0.00025927,3]
[387637625,1758793838786,-167.0,0.00025927,3]
[387637627,1758793838795,-167.0,0.00025927,3]
[387637629,1758793838805,-167.0,0.00025927,3]
[387637631,1758793838814,-167.0,0.00025927,3]
[387637633,1758793838823,-167.0,0.00025927,3]
[387637635,1758793838832,-167.0,0.00025927,3]
[387637637,1758793838842,-167.1765063,0.00025927,3]
[387637638,1758793838851,-154.28089581,0.00025927,3]
[387637639,1758793838861,-306.2739526,0.00025968,2]
[387637640,1758793838870,-1500.0,0.00025968,2]
[387637641,1758793838880,-1500.0,0.00025968,2]
[387637642,1758793838890,-43814.77199451,0.00025987,2]
[387637643,1758793838899,-4979.45748792,0.00026,10]
[387637645,1758793838909,-106512.711317,0.00026,30]
[387637647,1758793838918,-3510.5846182,0.00026027,2]
[387637649,1758793838928,-150.0,0.00026088,30]
[387637651,1758793838938,-168.0,0.00026099,2]
[387637653,1758793838947,-296.7745048,0.00026171,2]
[387637655,1758793838956,-326.4183013,0.00026171,2]
[387637657,1758793838966,-586.2552204,0.00026171,2]
[387637659,1758793838975,-586.2552204,0.00026171,2]
[387637661,1758793838984,-296.7745048,0.00026171,2]
[387637663,1758793838994,-586.2552204,0.00026171,2]
[387637665,1758793839003,-296.7745048,0.00026171,2]
[387637667,1758793839013,-270.4541899,0.00026171,2]
[387637669,1758793839022,-586.2552204,0.00026171,2]
[387637671,1758793839031,-586.2552204,0.00026171,2]
[387637673,1758793839040,-1180.7889658,0.00026171,2]
[387637675,1758793839050,-200000.0,0.00026222,2]
[387637677,1758793839060,-151.0,0.00026222,7]
[387637679,1758793839070,-189.486291,0.00026222,7]
[387637681,1758793839079,-151.0,0.00026222,7]
[387637683,1758793839088,-151.0,0.00026222,7]
[387637684,1758793839097,-151.0,0.00026222,7]
[387637685,1758793839106,-152.570141,0.00026222,7]
[387637686,1758793839115,-151.0,0.00026222,7]
[387637687,1758793839125,-151.0,0.00026222,7]
[387637688,1758793839135,-151.0,0.00026222,7]
[387637689,1758793839145,-151.0,0.00026222,7]
[387637690,1758793839154,-151.0,0.00026222,7]
[387637691,1758793839164,-157.469979,0.00026222,7]
[387637692,1758793839173,-157.469979,0.00026222,7]
[387637693,1758793839182,-157.469979,0.00026222,7]
[387637694,1758793839191,-151.0,0.00026222,7]
[387637695,1758793839201,-157.469979,0.00026222,7]
[387637696,1758793839210,-151.0,0.00026222,7]
[387637697,1758793839219,-151.0,0.00026222,7]
[387637698,1758793839229,-151.0,0.00026222,7]
[387637699,1758793839238,-151.0,0.00026222,7]
[387637700,1758793839248,-151.0,0.00026222,7]
[387637701,1758793839257,-159.508238,0.00026222,7]
[387637702,1758793839267,-151.0,0.00026222,7]
[387637703,1758793839278,-151.0,0.00026222,7]
[387637704,1758793839291,-151.0,0.00026222,7]
[387637705,1758793839300,-151.0,0.00026222,7]
[387637706,1758793839310,-151.0,0.00026222,7]
[387637707,1758793839319,-151.0,0.00026222,7]
[387637708,1758793839328,-300.640377,0.00026222,7]
[387637709,1758793839338,-151.0,0.00026222,7]
[387637710,1758793839347,-151.0,0.00026222,7]
[387637711,1758793839357,-151.0,0.00026222,7]
[387637712,1758793839366,-151.0,0.00026222,7]
[387637713,1758793839376,-151.0,0.00026222,7]
[387637714,1758793839385,-151.0,0.00026222,7]
[387637715,1758793839394,-151.0,0.00026222,7]
[387637716,1758793839403,-151.0,0.00026222,7]
[387637717,1758793839411,-151.0,0.00026222,7]
[387637718,1758793839421,-151.0,0.00026222,7]
[387637719,1758793839430,-151.0,0.00026222,7]
[387637720,1758793839439,-151.0,0.00026222,7]
[387637721,1758793839449,-151.0,0.00026222,7]
[387637722,1758793839458,-151.0,0.00026222,7]
[387637723,1758793839468,-151.0,0.00026222,7]
[387637724,1758793839477,-151.0,0.00026222,7]
[387637725,1758793839487,-151.0,0.00026222,7]
[387637726,1758793839496,-151.0,0.00026222,7]
[387637727,1758793839505,-151.0,0.00026222,7]
[387637728,1758793839514,-151.0,0.00026222,7]
[387637729,1758793839524,-151.0,0.00026222,7]
[387637730,1758793839534,-151.0,0.00026222,7]
[387637731,1758793839543,-151.0,0.00026222,7]
[387637732,1758793839552,-151.0,0.00026222,7]
[387637733,1758793839562,-151.0,0.00026222,7]
[387637734,1758793839571,-151.0,0.00026222,7]
[387637735,1758793839581,-151.0,0.00026222,7]
[387637737,1758793839591,-151.0,0.00026222,7]
[387637738,1758793839600,-151.0,0.00026222,7]
[387637740,1758793839610,-151.0,0.00026222,7]
[387637742,1758793839619,-151.0,0.00026222,7]
[387637744,1758793839629,-151.0,0.00026222,7]
[387637746,1758793839639,-151.0,0.00026222,7]
[387637747,1758793839648,-151.0,0.00026222,7]
[387637748,1758793839658,-151.0,0.00026222,7]
[387637749,1758793839668,-151.0,0.00026222,7]
[387637750,1758793839678,-151.0,0.00026222,7]
[387637751,1758793839687,-151.0,0.00026222,7]
[387637752,1758793839696,-156.313659,0.00026222,7]
[387637753,1758793839706,-151.0,0.00026222,7]
[387637754,1758793839716,-151.0,0.00026222,7]
[387637755,1758793839725,-151.0,0.00026222,7]
[387637757,1758793839735,-151.0,0.00026222,7]
[387637759,1758793839744,-151.0,0.00026222,7]
[387637761,1758793839755,-151.0,0.00026222,7]
[387637762,1758793839764,-151.0,0.00026222,7]
[387637764,1758793839773,-151.0,0.00026222,7]
[387637766,1758793839783,-151.0,0.00026222,7]
[387637768,1758793839793,-151.0,0.00026222,7]
[387637769,1758793839803,-151.0,0.00026222,7]
[387637770,1758793839813,-151.0,0.00026222,7]
[387637771,1758793839822,-151.0,0.00026222,7]
[387637772,1758793839832,-427.083295,0.00026222,7]
[387637773,1758793839841,-427.083295,0.00026222,7]
[387637774,1758793839851,-427.083295,0.00026222,7]
[387637775,1758793839864,-427.083295,0.00026222,7]
[387637776,1758793839873,-151.0,0.00026222,7]
[387637777,1758793839883,-151.0,0.00026222,7]
[387637778,1758793839892,-151.0,0.00026222,7]
[387637779,1758793839902,-151.0,0.00026222,7]
[387637780,1758793839912,-151.0,0.00026222,7]
[387637781,1758793839922,-151.0,0.00026222,7]
[387637782,1758793839932,-151.0,0.00026222,7]
[387637784,1758793840028,-151.0,0.00026222,7]
[387637785,1758793840039,-294.359205,0.00026222,7]
[387637786,1758793840048,-151.0,0.00026222,7]
[387637787,1758793840058,-151.0,0.00026222,7]
[387637788,1758793840068,-151.0,0.00026222,7]
[387637789,1758793840078,-219.262105,0.00026222,7]
[387637790,1758793840087,-151.0,0.00026222,7]
[387637791,1758793840097,-151.0,0.00026222,7]
[387637792,1758793840107,-151.0,0.00026222,7]
[387637793,1758793840117,-272.728007,0.00026222,7]
[387637794,1758793840127,-153.14851591,0.00026222,2]
[387637795,1758793840137,-272.728007,0.00026222,7]
[387637796,1758793840147,-272.728007,0.00026222,7]
[387637797,1758793840156,-272.728007,0.00026222,7]
[387637798,1758793840166,-151.0,0.00026222,7]
[387637799,1758793840176,-151.0,0.00026222,7]
[387637800,1758793840185,-243.111372,0.00026222,7]
[387637801,1758793840195,-151.0,0.00026222,7]
[387637802,1758793840205,-151.0,0.00026222,7]
[387637803,1758793840214,-243.111372,0.00026222,7]
[387637804,1758793840223,-151.0,0.00026222,7]
[387637805,1758793840233,-151.0,0.00026222,7]
[387637807,1758793840242,-243.111372,0.00026222,7]
[387637809,1758793840251,-151.0,0.00026222,7]
[387637811,1758793840261,-243.111372,0.00026222,7]
[387637813,1758793840270,-151.0,0.00026222,7]
[387637815,1758793840281,-151.0,0.00026222,7]
[387637817,1758793840295,-151.0,0.00026222,7]
[387637819,1758793840304,-151.0,0.00026222,7]
[387637821,1758793840314,-151.0,0.00026222,7]
[387637823,1758793840323,-151.0,0.00026222,7]
[387637825,1758793840334,-859.309136,0.00026222,7]
[387637827,1758793840343,-859.309136,0.00026222,7]
[387637829,1758793840353,-859.309136,0.00026222,7]
[387637831,1758793840365,-859.309136,0.00026222,7]
[387637833,1758793840376,-298.028795,0.00026222,7]
[387637835,1758793840385,-151.0,0.00026222,7]
[387637837,1758793840394,-298.028795,0.00026222,7]
[387637838,1758793840404,-151.0,0.00026222,7]
[387637839,1758793840414,-151.0,0.00026222,7]
[387637840,1758793840423,-298.028795,0.00026222,7]
[387637841,1758793840433,-157.944971,0.00026222,7]
[387637842,1758793840443,-298.028795,0.00026222,7]
[387637843,1758793840452,-151.0,0.00026222,7]
[387637844,1758793840461,-151.0,0.00026222,7]
[387637845,1758793840471,-151.0,0.00026222,7]
[387637846,1758793840480,-151.0,0.00026222,7]
[387637847,1758793840490,-151.0,0.00026222,7]
[387637848,1758793840499,-151.0,0.00026222,7]
[387637849,1758793840508,-151.0,0.00026222,7]
[387637850,1758793840518,-151.0,0.00026222,7]
[387637851,1758793840528,-151.0,0.00026222,7]
[387637852,1758793840537,-151.0,0.00026222,7]
[387637853,1758793840546,-151.0,0.00026222,7]
[387637854,1758793840555,-151.0,0.00026222,7]
[387637855,1758793840566,-984.60573932,0.00026331,5]
[387637856,1758793840575,-944.2,0.000264,2]
[387637857,1758793840585,-179.85,0.00026436,2]
[387637858,1758793840594,-2000.0,0.00026516,2]
[387637859,1758793840603,-173.7,0.00026644,6]
[387637860,1758793840614,-168.0,0.00026685,2]
[387637861,1758793840624,-193.0,0.0002705,2]
[387637862,1758793840633,-2500.0,0.00027064,2]
[387637863,1758793840643,-2947.87783476,0.0002712,2]
[387637864,1758793840653,-767.44,0.00027123,6]
[387637865,1758793840663,-168.0,0.00027163,2]
[387637866,1758793840674,-213143.45,0.0002722,2]
[387637867,1758793840683,-196.0,0.00027269,2]
[387637868,1758793840693,-4316.38642647,0.0002734,2]
[387637869,1758793840703,-1759.68058609,0.00027397,5]
[387637870,1758793840712,-2388.32092746,0.00027397,5]
[387637871,1758793840722,-960.0,0.00027397,2]
[387637872,1758793840732,-150.0,0.00027397,5]
[387637873,1758793840742,-1002.575568,0.000274,2]
[387637874,1758793840751,-984.60573932,0.00027403,7]
[387637875,1758793840761,-168.0,0.00027407,2]
[387637876,1758793840772,-193.0,0.0002743,2]
[387637877,1758793840781,-193.0,0.00027437,2]
[387637878,1758793840791,-202561.45380749,0.0002744,2]
[387637879,1758793840810,-16165.21193378,0.0002744,2]
[387637880,1758793840821,-1301.12289125,0.0002744,2]
[387637881,1758793840832,-4456.00643768,0.0002744,2]
[387637882,1758793840844,-963.85330514,0.0002744,2]
[387637883,1758793840856,-1003.90200101,0.0002744,2]
[387637884,1758793841406,-8.59708308,0.00026222,7]
[387637934,1758793843318,-291.45560762,0.00019349,2]
[387637993,1758793843736,-188.54439238,0.00019349,2]
[387637997,1758793843747,-233.66602051,0.00021984,2]
[387638000,1758793843757,-142.40291692,0.00026222,7]
[387638002,1758793843766,-151.0,0.00026222,7]
[387638004,1758793843775,-2325.93667039,0.0002744,2]
[387638286,1758793846502,-481.31711894,0.00019349,2]
[387638288,1758793846513,-486.32062007,0.00019351,2]
[387638290,1758793846522,-151.0,0.00026222,7]
[387638292,1758793846532,-151.0,0.00026222,7]
[387638294,1758793846541,-278.26226099,0.0002744,2]
[387638449,1758793926560,-378.58,0.00019342,3]
[387638450,1758793926589,-480.0,0.00019349,2]
[387638451,1758793926617,-480.0,0.00019349,2]
[387638452,1758793926646,-458.0559858,0.00019349,2]
[387638453,1758793926675,-480.0,0.00019349,2]
[387638454,1758793926704,-480.0,0.00019349,2]
[387638455,1758793926732,-484.97697786,0.00019349,2]
[387638456,1758793926765,-480.0,0.00019349,2]
[387638457,1758793926797,-480.0,0.00019349,2]
[387638458,1758793926826,-480.0,0.00019349,2]
[387638459,1758793926858,-156.78407268,0.00019349,2]
[387638461,1758793966623,-1438.79547549,0.00019311,2]
[387638462,1758793966652,-480.0,0.00019348,2]
[387638463,1758793966681,-323.21592732,0.00019349,2]
[387638464,1758793966709,-383.25369603,0.00019349,2]
[387638465,1758793966737,-499.5856215,0.00019349,2]
[387638466,1758793966765,-480.0,0.00019349,2]
[387638467,1758793966795,-480.0,0.00019349,2]
[387638468,1758793966823,-481.83439302,0.00019349,2]
[387638469,1758793966851,-385.0395432,0.00019349,2]
[387638470,1758793970535,-96.56068688,0.00019349,2]
[387638471,1758793970557,-56.2735563,0.00019349,2]
[387638472,1758793974254,-158.014407,0.00019349,2]
[387638473,1758793977479,-263.95162424,0.00019349,2]
[387638474,1758793980933,-1.76041246,0.00019349,2]
[387638475,1758793980955,-192.03801123,0.00019349,2]
[387638476,1758793985335,-219.56178773,0.00019349,2]
[387638477,1758793988296,-68.40020104,0.00019349,2]
[387638478,1758793988323,-431.59979896,0.00019349,2]
[387638479,1758793992253,-48.40020104,0.00019349,2]
[387638480,1758793992275,-390.72337441,0.00019349,2]
[387638481,1758793995418,-89.27662559,0.00019349,2]
[387638482,1758793995440,-213.6880166,0.00019349,2]
[387638483,1758793997514,-266.3119834,0.00019349,2]
[387638484,1758793997536,-91.56097848,0.00019349,2]
[387638485,1758793999223,-336.23005896,0.00019349,2]
[387638487,1758794024261,-49.93923813,0.00019349,2]
[387638488,1758794024283,-245.57049134,0.00019349,2]
[387638489,1758794027735,-234.42950866,0.00019349,2]
[387638490,1758794027757,-243.77262387,0.00019349,2]
[387638491,1758794029861,-295.84484268,0.00019349,2]
[387638492,1758794032859,-196.23003166,0.00019349,2]
[387638493,1758794036266,-314.3295498,0.00019349,2]
[387638494,1758794038662,-288.87293284,0.00019349,2]
[387638495,1758794040231,-170.28500723,0.00019349,2]
[387638496,1758794043814,-162.1292252,0.00019349,2]
[387638497,1758794048154,-137.8707748,0.00019349,2]
[387638498,1758794048177,-65.1589364,0.00019349,2]
[387638499,1758794050393,-302.71723195,0.00019349,2]
[387638501,1758794075910,-256.91440648,0.00019349,2]
[387638502,1758794080386,-187.12364866,0.00019349,2]
[387638503,1758794083878,-486.41082638,0.00019349,2]
[387638504,1758794083903,-40.13244892,0.0001935,2]